bitfinex-derivatives/quotes_BNBF0:USTF0_20251002
["timestamp","ask_amount","ask_price","bid_price","bid_amount"]
[1759384933515,0.16857729,1032.6,1032.5,2.947]
[1759384937117,1.03688648,1032.6,1032.5,2.947]
[1759384937416,1.03688648,1032.6,1032.5,1.609]
[1759384940320,0.16857729,1032.6,1032.5,1.609]
[1759384940621,1.03706478,1032.6,1032.5,1.609]
[1759384940822,0.16857729,1032.6,1032.5,1.609]
[1759384945219,1.03706321,1032.6,1032.5,1.609]
[1759384949729,1.03706321,1032.6,1032.2,4.613]
[1759384949730,0.16857729,1032.6,1032.2,4.613]
[1759384951329,1.03706321,1032.6,1032.2,4.613]
[1759384951625,0.16857729,1032.6,1032.2,4.613]
[1759384951830,0.16857729,1032.6,1032.3,1.397]
[1759384954029,0.86848592,1032.4,1032.3,1.397]
[1759384959433,0.16857729,1032.6,1032.3,1.397]
[1759384959730,1.03706321,1032.6,1032.3,1.397]
[1759384961938,1.30807463,1032.4,1032.3,1.397]
[1759384963537,0.16857729,1032.6,1032.3,1.397]
[1759384964253,0.16857729,1032.6,1032.3,0.09568152]
[1759384964840,0.16857729,1032.6,1031.8,1.666]
[1759384965038,0.8656386,1032.1,1031.8,1.666]
[1759384965841,0.8656386,1032.2,1031.8,1.666]
[1759384967243,0.8656386,1032.2,1031.8,2.824]
[1759384968040,0.8656386,1032.4,1031.8,2.824]
[1759384970044,0.8656386,1032.5,1031.8,2.824]
[1759384971641,1.03421589,1032.6,1031.8,2.824]
[1759384972743,0.8656386,1032.5,1031.8,2.824]
[1759384977641,1.03421589,1032.6,1031.8,2.824]
[1759384983853,0.8656386,1032.4,1031.8,2.824]
[1759384984858,1.03421589,1032.6,1031.8,2.824]
[1759384986558,0.8656386,1032.5,1031.8,2.824]
[1759384988260,0.8656386,1032.5,1031.8,1.666]
[1759384988858,1.03421589,1032.6,1031.8,1.666]
[1759384990663,1.03421589,1032.6,1031.9,1.176]
[1759384994264,0.16857729,1032.6,1031.9,1.176]
[1759384997465,0.16857729,1032.6,1032.0,1.14]
[1759384999068,1.03421589,1032.6,1032.0,1.14]
[1759384999772,0.8656386,1032.5,1032.0,1.14]
[1759385005274,0.8656386,1032.4,1032.0,1.14]
[1759385005474,0.8656386,1032.5,1032.0,1.14]
[1759385006878,0.8656386,1032.5,1032.1,1.775]
[1759385010778,0.8656386,1032.5,1032.1,3.564]
[1759385012878,0.8656386,1032.4,1032.1,3.564]
[1759385014476,0.8656386,1032.5,1032.1,3.564]
[1759385014875,0.8656386,1032.5,1032.1,5.038]
[1759385015682,0.8656386,1032.5,1032.1,6.711]
[1759385017080,0.8656386,1032.4,1032.1,6.711]
[1759385017681,0.8656386,1032.5,1032.1,6.711]
[1759385019289,0.16857729,1032.6,1032.1,6.711]
[1759385025993,0.16857729,1032.6,1032.1,5.237]
[1759385029997,0.16857729,1032.6,1032.2,1.255]
[1759385042007,0.8656386,1033.3,1032.2,1.255]
[1759385042207,0.16852749,1032.8,1032.2,1.255]
[1759385042705,0.8656386,1033.0,1032.2,1.255]
[1759385042910,0.1685328,1032.9,1032.2,1.255]
[1759385049416,0.8656386,1033.3,1032.2,1.255]
[1759385049616,0.8656386,1033.4,1032.2,1.255]
[1759385049811,0.16849812,1033.1,1032.2,1.255]
[1759385054116,0.16849812,1033.1,1032.1,5.237]
[1759385055818,0.16849812,1033.1,1032.1,3.448]
[1759385056921,0.16849812,1033.1,1032.1,1.673]
[1759385057919,0.16849812,1033.1,1032.2,1.577]
[1759385058117,0.16849812,1033.1,1032.2,3.059]
[1759385060625,0.16849812,1033.1,1032.3,1.153]
[1759385063527,0.8656386,1033.7,1032.3,1.153]
[1759385063724,0.16845733,1033.4,1032.3,1.153]
[1759385065127,0.16845733,1033.4,1032.4,1.085]
[1759385083939,0.8656386,1033.2,1032.4,1.085]
[1759385087044,0.8656386,1033.1,1032.4,1.085]
[1759385089246,0.8656386,1033.1,1032.5,1.305]
[1759385090445,1.46691523,1033.4,1032.5,1.305]
[1759385090446,0.8656386,1033.0,1032.5,1.305]
[1759385090644,0.8656386,1033.0,1032.6,1.604]
[1759385092246,0.8656386,1032.9,1032.6,1.604]
[1759385095351,0.8656386,1033.0,1032.6,1.604]
[1759385097459,0.8656386,1033.1,1032.6,1.604]
[1759385102263,0.8656386,1033.0,1032.6,1.604]
[1759385102664,0.8656386,1033.1,1032.6,1.604]
[1759385103768,1.03409593,1033.4,1032.6,1.604]
[1759385104769,1.03409593,1033.4,1032.7,1.279]
[1759385106467,0.16845733,1033.4,1032.7,1.279]
[1759385110568,1.03409593,1033.4,1032.7,1.279]
[1759385111372,0.8656386,1033.3,1032.7,1.279]
[1759385111770,1.03409593,1033.4,1032.7,1.279]
[1759385112274,0.8656386,1033.2,1032.7,1.279]
[1759385114402,0.8656386,1033.3,1032.7,1.279]
[1759385114781,0.8656386,1033.2,1032.7,1.279]
[1759385115581,0.8656386,1033.3,1032.7,1.279]
[1759385117876,0.8656386,1033.3,1032.8,1.307]
[1759385121885,0.8656386,1033.3,1032.9,1.099]
[1759385122380,0.8656386,1033.3,1032.9,2.304]
[1759385125082,0.8656386,1033.2,1032.9,2.304]
[1759385125485,0.8656386,1033.3,1032.9,2.304]
[1759385128081,0.8656386,1033.3,1032.9,3.938]
[1759385128581,1.03409593,1033.4,1032.9,3.938]
[1759385130585,0.8656386,1033.3,1032.9,3.938]
[1759385132388,0.8656386,1033.2,1032.9,3.938]
[1759385132588,0.8656386,1033.3,1032.9,3.938]
[1759385137485,1.03409593,1033.4,1032.9,3.938]
[1759385137687,1.03409593,1033.4,1032.9,2.733]
[1759385137885,1.03409593,1033.4,1032.9,1.634]
[1759385140391,1.03409593,1033.4,1033.0,1.734]
[1759385140991,1.03409593,1033.4,1033.0,2.909]
[1759385143793,0.16845733,1033.4,1033.0,2.909]
[1759385143991,0.8656386,1033.3,1033.0,2.909]
[1759385144593,0.8656386,1033.1,1033.0,2.909]
[1759385152299,1.2984579,1033.2,1033.0,2.909]
[1759385152996,0.16845733,1033.4,1033.0,2.909]
[1759385153199,0.16845733,1033.4,1033.0,1.734]
[1759385159108,1.03625133,1033.4,1033.0,1.734]
[1759385159909,0.867794,1033.3,1033.0,1.734]
[1759385161023,0.867794,1033.1,1033.0,1.734]
[1759385162614,1.2984579,1033.3,1033.0,1.734]
[1759385163212,1.2984579,1033.2,1033.0,1.734]
[1759385163716,1.2984579,1033.3,1033.0,1.734]
[1759385164219,1.2984579,1033.2,1033.0,1.734]
[1759385164515,1.2984579,1033.2,1032.9,1.757]
[1759385164815,0.8688448,1033.0,1032.9,1.757]
[1759385173223,0.8688448,1033.0,1032.8,2.6]
[1759385173425,0.16845733,1033.4,1032.8,2.6]
[1759385173426,0.8688448,1033.1,1032.8,2.6]
[1759385173630,0.8688448,1033.2,1032.8,2.6]
[1759385176723,0.8688448,1033.2,1032.8,4.237]
[1759385178433,0.8688448,1033.1,1032.8,2.93]
[1759385181535,0.8688448,1033.0,1032.8,2.93]
[1759385182239,0.8688448,1033.1,1032.8,2.93]
[1759385182535,0.8688448,1033.0,1032.8,2.93]
[1759385183238,0.8688448,1033.1,1032.8,2.93]
[1759385185236,0.8688448,1033.1,1032.8,1.637]
[1759385187741,0.8688448,1033.0,1032.8,1.637]
[1759385188941,0.8688448,1033.0,1032.8,3.194]
[1759385189939,0.8688448,1033.1,1032.8,3.194]
[1759385191445,0.8688448,1033.0,1032.8,3.194]
[1759385192045,0.8688448,1033.1,1032.8,3.194]
[1759385192446,0.8688448,1033.0,1032.8,3.194]
[1759385212872,0.8688448,1032.9,1032.8,3.194]
[1759385213071,1.2984579,1033.1,1032.8,3.194]
[1759385213269,1.2984579,1033.1,1032.8,1.637]
[1759385213772,1.2984579,1033.0,1032.8,1.637]
[1759385214772,0.16845733,1033.4,1032.8,1.637]
[1759385216174,1.30434042,1032.9,1032.8,1.637]
[1759385216973,0.16845733,1033.4,1032.8,1.637]
[1759385217373,0.16845733,1033.4,1032.8,0.16860341]
[1759385219171,1.3021459,1032.9,1032.8,0.16860341]
[1759385223480,1.3021459,1033.0,1032.8,0.16860341]
[1759385224882,1.3021459,1033.0,1032.7,1.415]
[1759385225083,0.86648663,1032.8,1032.7,1.415]
[1759385226185,1.3021459,1033.0,1032.7,1.415]
[1759385226381,1.3021459,1032.9,1032.7,1.415]
[1759385227381,1.3021459,1033.0,1032.7,1.415]
[1759385228083,1.3021459,1032.9,1032.7,1.415]
[1759385228284,0.86559809,1032.8,1032.7,1.415]
[1759385231482,0.86559809,1032.9,1032.7,1.415]
[1759385235789,0.86559809,1033.0,1032.7,1.415]
[1759385236492,0.86559809,1032.9,1032.7,1.415]
[1759385236690,0.86559809,1033.0,1032.7,1.415]
[1759385241091,0.86559809,1033.0,1032.6,1.211]
[1759385243597,0.86559809,1033.0,1032.7,1.679]
[1759385244094,0.86559809,1033.2,1032.7,1.679]
[1759385244594,1.03405542,1033.4,1032.7,1.679]
[1759385251002,0.86559809,1033.2,1032.7,1.679]
[1759385255906,0.86559809,1033.2,1032.7,2.839]
[1759385257309,0.86559809,1033.3,1032.7,2.839]
[1759385258111,0.86559809,1033.2,1032.7,2.839]
[1759385263912,0.16850627,1033.1,1032.7,2.839]
[1759385268123,1.03410436,1033.1,1032.7,2.839]
[1759385271523,1.03410436,1033.1,1032.7,1.16]
[1759385274826,1.03410436,1033.1,1032.8,1.119]
[1759385277925,0.16850627,1033.1,1032.8,1.119]
[1759385280529,1.03410436,1033.1,1032.8,1.119]
[1759385281129,0.16850627,1033.1,1032.8,1.119]
[1759385285635,1.03410436,1033.1,1032.8,1.119]
[1759385286132,0.16850627,1033.1,1032.8,1.119]
[1759385286836,1.03410436,1033.1,1032.8,1.119]
[1759385290237,0.16850627,1033.1,1032.8,1.119]
[1759385290538,1.03410436,1033.1,1032.8,1.119]
[1759385297043,0.16850627,1033.1,1032.8,1.119]
[1759385301747,1.03410436,1033.1,1032.8,1.119]
[1759385302047,1.03410436,1033.1,1032.7,1.16]
[1759385303646,0.86559809,1033.0,1032.7,1.16]
[1759385304143,1.03410436,1033.1,1032.6,1.145]
[1759385306145,1.03410436,1033.1,1032.7,1.329]
[1759385306445,1.03410436,1033.1,1032.7,2.587]
[1759385306948,0.16850627,1033.1,1032.7,2.587]
[1759385316763,1.03410436,1033.1,1032.7,2.587]
[1759385319061,0.16850627,1033.1,1032.7,2.587]
[1759385321965,0.16850627,1033.1,1032.7,1.329]
[1759385323865,0.86559809,1033.0,1032.7,1.329]
[1759385324160,0.86559809,1033.0,1032.6,1.145]
[1759385325163,1.03410436,1033.1,1032.6,1.145]
[1759385334076,1.03410436,1033.1,1032.4,1.396]
[1759385335278,0.86559809,1033.0,1032.4,1.396]
[1759385337580,0.86559809,1032.9,1032.4,1.396]
[1759385338084,0.86559809,1033.0,1032.4,1.396]
[1759385343286,0.16850627,1033.1,1032.4,1.396]
[1759385343687,0.16850627,1033.1,1031.8,1.367]
[1759385346688,0.16850627,1033.1,1031.9,1.416]
[1759385350090,1.03410436,1033.1,1031.9,1.416]
[1759385354394,0.16850627,1033.1,1031.9,1.416]
[1759385357596,1.03410436,1033.1,1031.9,1.416]
[1759385363101,0.86559809,1033.0,1031.9,1.416]
[1759385363702,0.86559809,1032.9,1031.9,1.416]
[1759385365699,0.86559809,1032.9,1032.0,1.169]
[1759385366203,0.86559809,1032.7,1032.0,1.169]
[1759385370609,0.86559809,1032.6,1032.0,1.169]
[1759385371308,0.86559809,1032.7,1032.0,1.169]
[1759385373404,0.86559809,1032.8,1032.0,1.169]
[1759385374907,0.86559809,1032.8,1032.1,1.181]
[1759385375607,0.16850627,1033.1,1032.1,1.181]
[1759385375608,0.86559809,1032.9,1032.1,1.181]
[1759385375812,0.86559809,1032.8,1032.1,1.181]
[1759385376012,1.47065217,1033.1,1032.1,1.181]
[1759385376013,0.86559809,1032.7,1032.1,1.181]
[1759385377810,0.86559809,1032.6,1032.1,1.181]
[1759385379811,0.86559809,1032.7,1032.1,1.181]
[1759385381209,0.86559809,1032.8,1032.1,1.181]
[1759385381413,0.86559809,1032.9,1032.1,1.181]
[1759385384812,0.86559809,1032.8,1032.1,1.181]
[1759385385214,0.86559809,1032.6,1032.1,1.181]
[1759385385812,0.86559809,1032.7,1032.1,1.181]
[1759385386917,0.86559809,1032.8,1032.1,1.181]
[1759385389212,0.86559809,1032.9,1032.1,1.181]
[1759385391520,0.86559809,1032.9,1032.1,2.438]
[1759385392515,0.86559809,1032.8,1032.1,2.438]
[1759385397121,0.86559809,1032.8,1032.2,1.684]
[1759385402422,0.86559809,1032.9,1032.2,1.684]
[1759385403425,0.86559809,1032.9,1032.3,1.388]
[1759385404724,0.86559809,1033.0,1032.3,1.388]
[1759385405122,0.86559809,1032.9,1032.3,1.388]
[1759385407827,0.86559809,1032.8,1032.3,1.388]
[1759385408024,0.86559809,1032.7,1032.3,1.388]
[1759385408224,0.86559809,1032.6,1032.3,1.388]
[1759385408423,0.86559809,1032.7,1032.3,1.388]
[1759385419131,0.86559809,1032.6,1032.3,1.388]
[1759385422640,0.16850627,1033.1,1032.3,1.388]
[1759385422641,0.86559809,1032.7,1032.3,1.388]
[1759385427446,0.86559809,1032.7,1032.2,3.183]
[1759385429447,0.86559809,1032.6,1032.2,3.183]
[1759385430545,0.86559809,1032.5,1032.2,3.183]
[1759385430850,0.86559809,1032.5,1032.2,1.499]
[1759385431451,0.86559809,1032.5,1032.3,1.228]
[1759385440252,0.86559809,1032.8,1032.3,1.228]
[1759385441052,0.86559809,1032.7,1032.3,1.228]
[1759385442359,0.86559809,1032.7,1032.2,1.499]
[1759385442652,0.86559809,1032.8,1032.2,1.499]
[1759385444755,0.86559809,1032.8,1032.3,1.577]
[1759385446159,0.86559809,1032.7,1032.3,1.577]
[1759385449256,0.86559809,1032.8,1032.3,1.577]
[1759385449756,0.86559809,1032.6,1032.3,1.577]
[1759385450261,0.86559809,1032.7,1032.3,1.577]
[1759385453763,0.86559809,1032.6,1032.3,2.965]
[1759385454883,0.86559809,1032.7,1032.3,2.965]
[1759385455967,0.86559809,1032.7,1032.3,1.388]
[1759385458867,0.86559809,1032.8,1032.3,1.388]
[1759385462270,0.86559809,1032.7,1032.3,1.388]
[1759385462570,0.86559809,1032.6,1032.3,1.388]
[1759385464367,1.03418355,1032.6,1032.3,1.388]
[1759385465192,0.86559809,1032.5,1032.3,1.388]
[1759385465571,0.86559809,1032.4,1032.3,1.388]
[1759385470779,0.86559809,1032.5,1032.3,1.388]
[1759385471075,0.86559809,1032.4,1032.3,1.388]
[1759385471280,0.86559809,1032.5,1032.3,1.388]
[1759385473078,0.86559809,1032.4,1032.3,1.388]
[1759385474184,1.3021459,1032.5,1032.3,1.388]
[1759385475686,0.87002669,1032.4,1032.3,1.388]
[1759385476980,0.87002669,1032.5,1032.3,1.388]
[1759385478378,0.87002669,1032.4,1032.3,1.388]
[1759385479078,1.3021459,1032.5,1032.3,1.388]
[1759385482892,1.47073136,1032.6,1032.3,1.388]
[1759385485497,0.86934948,1032.4,1032.3,1.388]
[1759385485896,1.47073136,1032.6,1032.3,1.388]
[1759385486197,0.86927099,1032.4,1032.3,1.388]
[1759385486594,1.3021459,1032.5,1032.3,1.388]
[1759385487600,1.47073136,1032.6,1032.3,1.388]
[1759385487800,0.86915322,1032.4,1032.3,1.388]
[1759385488501,1.3021459,1032.5,1032.3,1.388]
[1759385489497,0.86911227,1032.4,1032.3,1.388]
[1759385489701,1.3021459,1032.5,1032.3,1.388]
[1759385491500,0.86906816,1032.4,1032.3,1.388]
[1759385493405,1.47073136,1032.6,1032.3,1.388]
[1759385493406,1.3021459,1032.5,1032.3,1.388]
[1759385493902,0.86902711,1032.4,1032.3,1.388]
[1759385498506,0.86902711,1032.5,1032.3,1.388]
[1759385498905,0.16858546,1032.6,1032.3,1.388]
[1759385498906,1.03761257,1032.6,1032.3,1.388]
[1759385499706,1.03761257,1032.6,1032.0,1.524]
[1759385502212,0.86902711,1032.5,1032.0,1.524]
[1759385502514,0.86902711,1032.4,1032.0,1.524]
[1759385506511,0.86902711,1032.5,1032.0,1.524]
[1759385508416,0.86902711,1032.4,1032.0,1.524]
[1759385508612,0.86902711,1032.5,1032.0,1.524]
[1759385509216,0.86902711,1032.4,1032.0,1.524]
[1759385510614,0.86902711,1032.5,1032.0,1.524]
[1759385510817,0.86902711,1032.4,1032.0,1.524]
[1759385521318,0.86902711,1032.4,1031.6,1.206]
[1759385524126,0.86902711,1032.4,1031.7,2.946]
[1759385525628,0.86902711,1032.3,1031.7,2.946]
[1759385528732,0.86902711,1032.2,1031.7,2.946]
[1759385533830,0.86902711,1032.3,1031.7,2.946]
[1759385535432,0.86902711,1032.3,1031.8,1.356]
[1759385535830,0.86902711,1032.2,1031.8,1.356]
[1759385536633,0.86902711,1032.3,1031.8,1.356]
[1759385542236,0.86902711,1032.4,1031.8,1.356]
[1759385542934,0.86902711,1032.3,1031.8,1.356]
[1759385544033,0.86902711,1032.4,1031.8,1.356]
[1759385545737,0.86902711,1032.4,1031.9,1.711]
[1759385547034,0.86902711,1032.5,1031.9,1.711]
[1759385547237,0.86902711,1032.4,1031.9,1.711]
[1759385547937,0.86902711,1032.4,1032.0,1.535]
[1759385554747,1.03764034,1032.4,1032.0,1.535]
[1759385558851,0.86902711,1032.3,1032.0,1.535]
[1759385559549,0.16861323,1032.4,1032.0,1.535]
[1759385559950,0.16861323,1032.4,1032.1,1.079]
[1759385562452,1.03764034,1032.4,1032.1,1.079]
[1759385563447,0.16861323,1032.4,1032.1,1.079]
[1759385564451,0.86902711,1032.3,1032.1,1.079]
[1759385564650,0.16861323,1032.4,1032.1,1.079]
[1759385564651,0.86902711,1032.2,1032.1,1.079]
[1759385566557,1.3021459,1032.2,1032.1,1.079]
[1759385577165,1.3021459,1032.3,1032.1,1.079]
[1759385581673,1.47075913,1032.4,1032.1,1.079]
[1759385581869,0.86971329,1032.2,1032.1,1.079]
[1759385582174,0.86971329,1032.2,1032.0,1.535]
[1759385582973,0.86971329,1032.1,1032.0,1.535]
[1759385583170,1.47075913,1032.4,1032.0,1.535]
[1759385583171,0.86971329,1032.2,1032.0,1.535]
[1759385584474,0.86971329,1032.3,1032.0,1.535]
[1759385584870,0.86971329,1032.3,1032.1,1.652]
[1759385585171,1.03832652,1032.4,1032.1,1.652]
[1759385585371,0.86971329,1032.3,1032.1,1.652]
[1759385588073,1.03832652,1032.4,1032.1,1.652]
[1759385590877,0.16861323,1032.4,1032.1,1.652]
[1759385597877,0.16861323,1032.4,1032.0,2.434]
[1759385600979,1.03832652,1032.4,1032.0,2.434]
[1759385601482,1.03832652,1032.4,1032.1,1.096]
[1759385605385,0.16861323,1032.4,1032.1,1.096]
[1759385606793,1.03832652,1032.4,1032.1,1.096]
[1759385606990,0.16861323,1032.4,1032.1,1.096]
[1759385618498,0.16861323,1032.4,1032.0,2.434]
[1759385621903,0.16861323,1032.4,1032.1,1.468]
[1759385627515,0.86971329,1032.6,1032.1,1.468]
[1759385627915,0.16857239,1032.6,1032.1,1.468]
[1759385632918,0.16857239,1032.6,1031.4,4.49742607]
[1759385636321,0.16857239,1032.6,1031.5,1.042]
[1759385647430,0.16857239,1032.6,1031.5,1.69240139]
[1759385648332,0.16857239,1032.6,1031.5,1.042]
[1759385656337,0.16857239,1032.6,1031.4,0.65040139]
[1759385658042,0.16857239,1032.6,1031.5,0.65040139]
[1759385658240,0.16857239,1032.6,1031.5,4.18368395]
[1759385658843,0.16857239,1032.6,1031.6,1.392]
[1759385660847,0.16857239,1032.6,1031.6,2.639]
[1759385666772,0.16857239,1032.6,1031.6,4.148]
[1759385669149,0.16857239,1032.6,1031.6,4.79840139]
[1759385671450,0.16857239,1032.6,1031.7,0.65040139]
[1759385671651,0.16857239,1032.6,1031.6,4.79840139]
[1759385671849,0.16857239,1032.6,1031.7,0.65040139]
[1759385675157,0.16857239,1032.6,1031.6,3.40640139]
[1759385677357,0.16857239,1032.6,1031.7,0.65040139]
[1759385677558,0.16857239,1032.6,1031.7,1.041]
[1759385684663,0.16857239,1032.6,1031.7,1.69230655]
[1759385697580,0.16857239,1032.6,1031.7,0.65130655]
[1759385697977,0.16857239,1032.6,1031.8,1.134]
[1759385698182,0.16857239,1032.6,1031.8,5.05332912]
[1759385699180,0.16857239,1032.6,1031.8,1.134]
[1759385701085,0.16857239,1032.6,1031.9,1.25]
[1759385701382,0.86971329,1032.8,1031.9,1.25]
[1759385701580,0.16856014,1032.7,1031.9,1.25]
[1759385704888,0.16856014,1032.7,1032.0,1.461]
[1759385715401,0.16856014,1032.7,1032.1,1.388]
[1759385719293,0.16856014,1032.7,1032.2,1.625]
[1759385725594,0.86971329,1032.9,1032.2,1.625]
[1759385725807,0.86971329,1033.4,1032.3,1.214]
[1759385726098,0.16852667,1032.9,1032.3,1.214]
[1759385726298,0.86971329,1033.3,1032.3,1.214]
[1759385726498,0.16850219,1033.2,1032.3,1.214]
[1759385726695,1.03821548,1033.2,1032.3,1.214]
[1759385728393,0.86971329,1033.2,1032.3,1.214]
[1759385729793,0.86971329,1033.1,1032.3,1.214]
[1759385731007,0.86971329,1033.2,1032.3,1.214]
[1759385734195,0.86971329,1033.1,1032.3,1.214]
[1759385734697,0.86971329,1032.9,1032.3,1.214]
[1759385735397,1.03822609,1033.0,1032.3,1.214]
[1759385735801,1.03822609,1033.0,1032.4,1.555]
[1759385737401,0.1685128,1033.0,1032.4,1.555]
[1759385745408,0.1685128,1033.0,1032.5,1.103]
[1759385747810,0.1685128,1033.0,1032.6,1.065]
[1759385753713,0.1685128,1033.0,1032.7,1.623]
[1759385759323,0.86971329,1033.5,1032.7,1.623]
[1759385759618,0.16846141,1033.2,1032.7,1.623]
[1759385759821,0.86971329,1034.1,1032.7,1.623]
[1759385760122,0.16841738,1033.6,1032.7,1.623]
[1759385760323,0.86971329,1034.0,1032.7,1.623]
[1759385760719,0.16840271,1033.6,1032.7,1.623]
[1759385763223,0.86971329,1034.0,1032.7,1.623]
[1759385763428,0.16839783,1033.7,1032.7,1.623]
[1759385765324,1.03811112,1033.7,1032.7,1.623]
[1759385766229,0.16839783,1033.7,1032.7,1.623]
[1759385776738,0.16839783,1033.7,1032.6,1.065]
[1759385779240,0.16839783,1033.7,1032.7,1.205]
[1759385780043,1.03811112,1033.7,1032.7,1.205]
[1759385780443,0.86971329,1033.6,1032.7,1.205]
[1759385780844,0.86971329,1033.6,1032.8,1.508]
[1759385781043,1.03811112,1033.7,1032.8,1.508]
[1759385781241,0.86971329,1033.6,1032.8,1.508]
[1759385788654,0.86971329,1033.6,1032.9,1.454]
[1759385793158,0.86971329,1033.5,1032.9,1.454]
[1759385794860,0.86971329,1033.6,1032.9,1.454]
[1759385797463,0.86971329,1033.5,1032.9,1.454]
[1759385797863,0.86971329,1033.6,1032.9,1.454]
[1759385798361,0.86971329,1033.5,1032.9,1.454]
[1759385798562,0.86971329,1033.4,1032.9,1.454]
[1759385799164,0.86971329,1033.4,1033.0,1.2]
[1759385799963,0.86971329,1033.4,1033.1,1.235]
[1759385806068,0.86971329,1033.5,1033.1,1.235]
[1759385807369,0.86971329,1033.4,1033.1,1.235]
[1759385810671,0.86971329,1033.3,1033.1,1.235]
[1759385810875,0.16839783,1033.7,1033.1,1.235]
[1759385810876,0.86971329,1033.4,1033.1,1.235]
[1759385811171,0.86971329,1033.4,1033.0,1.2]
[1759385814676,0.86971329,1033.4,1033.1,1.518]
[1759385819380,0.86971329,1033.5,1033.1,1.518]
[1759385822180,0.86971329,1033.5,1033.1,2.785]
[1759385822484,0.86971329,1033.6,1033.1,2.785]
[1759385826387,1.03811112,1033.7,1033.1,2.785]
[1759385828990,1.03811112,1033.7,1033.1,1.267]
[1759385830590,0.86971329,1033.6,1033.1,1.267]
[1759385830790,1.03811112,1033.7,1033.1,1.267]
[1759385831992,0.86971329,1033.6,1033.2,1.328]
[1759385834293,1.03811112,1033.7,1033.2,1.328]
[1759385836289,0.86971329,1033.6,1033.2,1.328]
[1759385836796,1.03811112,1033.7,1033.2,1.328]
[1759385837392,0.86971329,1033.6,1033.2,1.328]
[1759385839196,1.03811112,1033.7,1033.2,1.328]
[1759385842799,1.03811112,1033.7,1033.3,1.403]
[1759385843400,1.03811112,1033.7,1033.3,2.844]
[1759385844298,0.16839783,1033.7,1033.3,2.844]
[1759385846002,1.03811112,1033.7,1033.3,2.844]
[1759385846498,0.16839783,1033.7,1033.3,2.844]
[1759385846702,1.03811112,1033.7,1033.3,2.844]
[1759385847199,1.03811112,1033.7,1033.3,3.884]
[1759385848403,0.16839783,1033.7,1033.3,3.884]
[1759385856609,1.03811112,1033.7,1033.3,3.884]
[1759385859313,0.16839783,1033.7,1033.3,3.884]
[1759385859812,1.03811112,1033.7,1033.3,3.884]
[1759385861409,1.03811112,1033.7,1033.3,2.443]
[1759385861915,1.03811112,1033.7,1033.4,1.633]
[1759385870418,0.86971329,1033.6,1033.4,1.633]
[1759385871317,1.03811112,1033.7,1033.4,1.633]
[1759385874123,1.03811112,1033.7,1033.3,2.443]
[1759385876624,1.03811112,1033.7,1033.4,1.322]
[1759385880639,0.16839783,1033.7,1033.4,1.322]
[1759385886744,0.86971329,1033.9,1033.4,1.322]
[1759385886946,0.16836076,1033.8,1033.4,1.322]
[1759385889551,0.16836076,1033.8,1033.4,2.745]
[1759385889751,0.16836076,1033.8,1033.4,4.093]
[1759385891650,0.16836076,1033.8,1033.4,2.771]
[1759385894952,0.16836076,1033.8,1033.5,1.347]
[1759385906254,0.16836076,1033.8,1033.4,2.771]
[1759385908356,0.16836076,1033.8,1033.5,1.044]
[1759385918474,1.03807405,1033.8,1033.5,1.044]
[1759385918670,0.16836076,1033.8,1033.5,1.044]
[1759385930681,0.16836076,1033.8,1033.4,1.423]
[1759385930682,1.03807405,1033.8,1033.4,1.423]
[1759385933381,0.16836076,1033.8,1033.4,1.423]
[1759385938688,1.03807405,1033.8,1033.4,1.423]
[1759385939385,0.86971329,1033.7,1033.4,1.423]
[1759385940485,1.03807405,1033.8,1033.4,1.423]
[1759385943086,0.16836076,1033.8,1033.4,1.423]
[1759385945788,0.16836076,1033.8,1033.1,1.449]
[1759385953691,0.16836076,1033.8,1032.7,0.64694475]
[1759385957093,0.16836076,1033.8,1032.8,1.248]
[1759385957298,0.16836076,1033.8,1032.8,4.93224799]
[1759385965604,0.16836076,1033.8,1032.8,6.48224799]
[1759385967805,0.86971329,1034.0,1032.8,6.48224799]
[1759385968004,1.03808423,1034.0,1032.8,6.48224799]
[1759385969106,0.16837094,1034.0,1032.8,6.48224799]
[1759385970107,1.03808423,1034.0,1032.8,5.23424799]
[1759385970305,0.16837094,1034.0,1032.8,5.23424799]
[1759385972810,0.16837094,1034.0,1032.9,1.296]
[1759385973315,1.03808423,1034.0,1032.9,1.296]
[1759385985023,1.03808423,1034.0,1033.0,1.44]
[1759385986531,0.86971329,1033.9,1033.0,1.44]
[1759385989128,1.03808423,1034.0,1033.0,1.44]
[1759385991334,0.16837094,1034.0,1033.0,1.44]
[1759385993335,0.16837094,1034.0,1033.1,1.015]
[1759385994129,0.86971329,1034.2,1033.1,1.015]
[1759385994535,1.03804188,1034.2,1033.1,1.015]
[1759385998540,0.16832859,1034.2,1033.1,1.015]
[1759386001348,0.16832859,1034.2,1033.2,1.053]
[1759386010553,0.16832859,1034.2,1033.3,1.314]
[1759386011248,1.03804188,1034.2,1033.3,1.314]
[1759386012351,0.16832859,1034.2,1033.3,1.314]
[1759386018261,0.16832859,1034.2,1033.4,1.209]
[1759386024161,0.16832859,1034.2,1033.5,1.564]
[1759386031567,0.16832859,1034.2,1033.6,1.341]
[1759386041779,0.16832859,1034.2,1033.7,1.609]
[1759386042579,0.86971329,1034.5,1033.7,1.609]
[1759386042779,0.16828545,1034.4,1033.7,1.609]
[1759386043175,1.03799874,1034.4,1033.7,1.609]
[1759386049989,1.03799874,1034.4,1033.8,1.03]
[1759386054693,0.16828545,1034.4,1033.8,1.03]